[Event "Titled Tuesday Blitz August 15 Late 2023"]
[White "Eljanov, Pavel"]
[Black "Shimanov, Aleksandr"]
[WhiteFideId "14102951"]
[BlackFideId "4198603"]
[WhiteElo "2917"]
[BlackElo "3029"]
[Result "1-0"]
[Round "9"]
[TimeControl "180+1"]
[Date "2023.08.15"]
[WhiteClock "0:00:19"]
[BlackClock "0:00:03"]
[Board "11"]

1. d4 {[%clk 0:03:00]}  d5 {[%clk 0:02:59]} 2. c4 {[%clk 0:02:59]}  dxc4 {[%clk 0:03:00]} 3. e4 {[%clk 0:02:58]}  Nf6 {[%clk 0:02:58]} 4. e5 {[%clk 0:02:57]}  Nd5 {[%clk 0:02:59]} 5. Bxc4 {[%clk 0:02:58]}  Nb6 {[%clk 0:02:58]} 6. Bd3 {[%clk 0:02:57]}  Nc6 {[%clk 0:02:56]} 7. Ne2 {[%clk 0:02:57]}  Nb4 {[%clk 0:02:46]} 8. Be4 {[%clk 0:02:56]}  f5 {[%clk 0:02:41]} 9. exf6 {[%clk 0:02:49]}  exf6 {[%clk 0:02:42]} 10. O-O {[%clk 0:02:49]}  c6 {[%clk 0:02:34]} 11. Nf4 {[%clk 0:02:43]}  g6 {[%clk 0:02:19]} 12. Nc3 {[%clk 0:02:42]}  Kf7 {[%clk 0:02:12]} 13. a3 {[%clk 0:02:27]}  Na6 {[%clk 0:02:11]} 14. Re1 {[%clk 0:01:55]}  Nc7 {[%clk 0:02:10]} 15. a4 {[%clk 0:01:46]}  Kg7 {[%clk 0:02:06]} 16. Qb3 {[%clk 0:01:29]}  Bd6 {[%clk 0:01:52]} 17. a5 {[%clk 0:01:26]}  Nd7 {[%clk 0:01:52]} 18. Bf3 {[%clk 0:01:21]}  Re8 {[%clk 0:01:40]} 19. Bd2 {[%clk 0:01:20]}  Nf8 {[%clk 0:01:36]} 20. Ne4 {[%clk 0:01:12]}  Bxf4 {[%clk 0:01:29]} 21. Bxf4 {[%clk 0:01:13]}  Nd5 {[%clk 0:01:30]} 22. Bg3 {[%clk 0:01:14]}  Ne6 {[%clk 0:01:28]} 23. Nd6 {[%clk 0:01:06]}  Re7 {[%clk 0:01:06]} 24. Bxd5 {[%clk 0:01:06]}  cxd5 {[%clk 0:01:07]} 25. Qxd5 {[%clk 0:01:05]}  Nc7 {[%clk 0:00:42]} 26. Rxe7+ {[%clk 0:00:53]}  Qxe7 {[%clk 0:00:43]} 27. Qc4 {[%clk 0:00:47]}  Be6 {[%clk 0:00:41]} 28. Re1 {[%clk 0:00:47]}  Qd7 {[%clk 0:00:36]} 29. Qb4 {[%clk 0:00:38]}  Bd5 {[%clk 0:00:33]} 30. h3 {[%clk 0:00:32]}  Ne6 {[%clk 0:00:30]} 31. Ne4 {[%clk 0:00:27]}  Re8 {[%clk 0:00:22]} 32. Nc3 {[%clk 0:00:24]}  Bc6 {[%clk 0:00:18]} 33. Rd1 {[%clk 0:00:24]}  Nc7 {[%clk 0:00:12]} 34. Bxc7 {[%clk 0:00:24]}  Qxc7 {[%clk 0:00:13]} 35. d5 {[%clk 0:00:25]}  Bd7 {[%clk 0:00:13]} 36. d6 {[%clk 0:00:23]}  Qc6 {[%clk 0:00:14]} 37. Qd4 {[%clk 0:00:23]}  b6 {[%clk 0:00:12]} 38. b4 {[%clk 0:00:22]}  bxa5 {[%clk 0:00:10]} 39. bxa5 {[%clk 0:00:23]}  a6 {[%clk 0:00:10]} 40. f3 {[%clk 0:00:24]}  Re5 {[%clk 0:00:10]} 41. Ne4 {[%clk 0:00:22]}  Qb5 {[%clk 0:00:07]} 42. Nxf6 {[%clk 0:00:19]}  Kxf6 {[%clk 0:00:02]} 43. f4 {[%clk 0:00:19]}  Ke6 {[%clk 0:00:02]} 44. Qxe5+ {[%clk 0:00:18]}  Qxe5 {[%clk 0:00:03]} 45. fxe5 {[%clk 0:00:18]}  Kxe5 {[%clk 0:00:03]} 46. Kf2 {[%clk 0:00:19]} 1-0


[Site "https://www.chess.com"]

[Event "Titled Tuesday Blitz August 15 Late 2023"]
[White "Moskalenko, Alexander"]
[Black "Bluebaum, Matthias"]
[WhiteFideId "4155351"]
[BlackFideId "24651516"]
[WhiteElo "2890"]
[BlackElo "3026"]
[Result "1/2-1/2"]
[Round "9"]
[TimeControl "180+1"]
[Date "2023.08.15"]
[WhiteClock "0:00:10"]
[BlackClock "0:00:19"]
[Board "12"]

1. c4 {[%clk 0:02:54]}  e6 {[%clk 0:03:00]} 2. Nf3 {[%clk 0:02:51]}  d5 {[%clk 0:03:01]} 3. g3 {[%clk 0:02:52]}  Nf6 {[%clk 0:03:00]} 4. Bg2 {[%clk 0:02:53]}  Nc6 {[%clk 0:03:01]} 5. O-O {[%clk 0:02:53]}  Bd6 {[%clk 0:03:02]} 6. d4 {[%clk 0:02:52]}  O-O {[%clk 0:03:02]} 7. b3 {[%clk 0:02:49]}  dxc4 {[%clk 0:03:02]} 8. bxc4 {[%clk 0:02:49]}  e5 {[%clk 0:03:02]} 9. e3 {[%clk 0:02:03]}  Bg4 {[%clk 0:03:00]} 10. h3 {[%clk 0:01:55]}  Bh5 {[%clk 0:03:01]} 11. g4 {[%clk 0:01:41]}  Bg6 {[%clk 0:02:57]} 12. Nc3 {[%clk 0:01:42]}  Ne4 {[%clk 0:02:50]} 13. Bb2 {[%clk 0:01:38]}  Re8 {[%clk 0:02:26]} 14. c5 {[%clk 0:01:34]}  Bf8 {[%clk 0:02:18]} 15. Nxe4 {[%clk 0:01:25]}  Bxe4 {[%clk 0:02:19]} 16. Nxe5 {[%clk 0:01:26]}  Bxg2 {[%clk 0:02:17]} 17. Kxg2 {[%clk 0:01:27]}  Nxe5 {[%clk 0:02:15]} 18. dxe5 {[%clk 0:01:28]}  Bxc5 {[%clk 0:02:15]} 19. Qxd8 {[%clk 0:01:25]}  Raxd8 {[%clk 0:02:16]} 20. Rac1 {[%clk 0:01:25]}  b6 {[%clk 0:02:08]} 21. Bd4 {[%clk 0:01:24]}  Bxd4 {[%clk 0:02:02]} 22. exd4 {[%clk 0:01:25]}  Rxd4 {[%clk 0:02:03]} 23. Rxc7 {[%clk 0:01:25]}  Ra4 {[%clk 0:02:03]} 24. Rd1 {[%clk 0:01:19]}  g5 {[%clk 0:01:55]} 25. Rd5 {[%clk 0:01:03]}  Re6 {[%clk 0:01:45]} 26. Rdd7 {[%clk 0:00:59]}  Rf4 {[%clk 0:01:44]} 27. Rxa7 {[%clk 0:00:55]}  Rxe5 {[%clk 0:01:44]} 28. Rd2 {[%clk 0:00:52]}  Kg7 {[%clk 0:01:44]} 29. Rb7 {[%clk 0:00:52]}  Re6 {[%clk 0:01:43]} 30. Rb2 {[%clk 0:00:52]}  Ref6 {[%clk 0:01:41]} 31. Rb8 {[%clk 0:00:47]}  h6 {[%clk 0:01:35]} 32. R8xb6 {[%clk 0:00:47]}  Rxf2+ {[%clk 0:01:36]} 33. Rxf2 {[%clk 0:00:46]}  Rxb6 {[%clk 0:01:36]} 34. a4 {[%clk 0:00:47]}  Ra6 {[%clk 0:01:33]} 35. Ra2 {[%clk 0:00:47]}  Kf6 {[%clk 0:01:13]} 36. a5 {[%clk 0:00:47]}  Ke5 {[%clk 0:01:14]} 37. Rf2 {[%clk 0:00:45]}  Ke4 {[%clk 0:01:03]} 38. Rf5 {[%clk 0:00:43]}  f6 {[%clk 0:01:03]} 39. Rb5 {[%clk 0:00:43]}  Rc6 {[%clk 0:01:00]} 40. Rb4+ {[%clk 0:00:34]}  Ke3 {[%clk 0:01:00]} 41. Ra4 {[%clk 0:00:33]}  Ra6 {[%clk 0:01:01]} 42. Kg3 {[%clk 0:00:33]}  Kd3 {[%clk 0:00:58]} 43. Kf3 {[%clk 0:00:33]}  Kc3 {[%clk 0:00:58]} 44. Ke4 {[%clk 0:00:34]}  Kb3 {[%clk 0:00:59]} 45. Ra1 {[%clk 0:00:33]}  Kb2 {[%clk 0:01:00]} 46. Rf1 {[%clk 0:00:30]}  Kc3 {[%clk 0:00:43]} 47. Kf5 {[%clk 0:00:27]}  Rxa5+ {[%clk 0:00:21]} 48. Kxf6 {[%clk 0:00:28]}  Kd4 {[%clk 0:00:22]} 49. Kg7 {[%clk 0:00:26]}  Ra3 {[%clk 0:00:16]} 50. Kxh6 {[%clk 0:00:26]}  Rxh3+ {[%clk 0:00:17]} 51. Kxg5 {[%clk 0:00:27]}  Rh8 {[%clk 0:00:18]} 52. Rf7 {[%clk 0:00:08]}  Ke5 {[%clk 0:00:18]} 53. Re7+ {[%clk 0:00:04]}  Kd6 {[%clk 0:00:18]} 54. Re1 {[%clk 0:00:05]}  Rg8+ {[%clk 0:00:18]} 55. Kf5 {[%clk 0:00:05]}  Rf8+ {[%clk 0:00:18]} 56. Kg5 {[%clk 0:00:05]}  Rg8+ {[%clk 0:00:19]} 57. Kh4 {[%clk 0:00:06]}  Rh8+ {[%clk 0:00:19]} 58. Kg3 {[%clk 0:00:06]}  Rg8 {[%clk 0:00:20]} 59. Re4 {[%clk 0:00:06]}  Kd5 {[%clk 0:00:21]} 60. Re3 {[%clk 0:00:06]}  Kd6 {[%clk 0:00:18]} 61. Re2 {[%clk 0:00:05]}  Kd5 {[%clk 0:00:19]} 62. Re1 {[%clk 0:00:05]}  Kd6 {[%clk 0:00:19]} 63. Re4 {[%clk 0:00:04]}  Kd5 {[%clk 0:00:20]} 64. Re7 {[%clk 0:00:04]}  Kd6 {[%clk 0:00:20]} 65. Rf7 {[%clk 0:00:03]}  Ke6 {[%clk 0:00:20]} 66. Rf4 {[%clk 0:00:03]}  Ke5 {[%clk 0:00:20]} 67. Rf5+ {[%clk 0:00:03]}  Ke6 {[%clk 0:00:21]} 68. Rf1 {[%clk 0:00:04]}  Ke5 {[%clk 0:00:20]} 69. Rf7 {[%clk 0:00:03]}  Ke6 {[%clk 0:00:21]} 70. Ra7 {[%clk 0:00:04]}  Kf6 {[%clk 0:00:20]} 71. Kf4 {[%clk 0:00:05]}  Rb8 {[%clk 0:00:19]} 72. Ra6+ {[%clk 0:00:05]}  Kg7 {[%clk 0:00:19]} 73. Kg5 {[%clk 0:00:05]}  Rb5+ {[%clk 0:00:19]} 74. Kh4 {[%clk 0:00:06]}  Rc5 {[%clk 0:00:20]} 75. g5 {[%clk 0:00:06]}  Kg8 {[%clk 0:00:20]} 76. Kh5 {[%clk 0:00:06]}  Rc8 {[%clk 0:00:19]} 77. Kg6 {[%clk 0:00:06]}  Rb8 {[%clk 0:00:19]} 78. Re6 {[%clk 0:00:06]}  Rc8 {[%clk 0:00:20]} 79. Kf6 {[%clk 0:00:06]}  Rf8+ {[%clk 0:00:20]} 80. Kg6 {[%clk 0:00:07]}  Ra8 {[%clk 0:00:21]} 81. Kh6 {[%clk 0:00:07]}  Rb8 {[%clk 0:00:21]} 82. g6 {[%clk 0:00:07]}  Ra8 {[%clk 0:00:22]} 83. g7 {[%clk 0:00:07]}  Rb8 {[%clk 0:00:22]} 84. Rf6 {[%clk 0:00:07]}  Rc8 {[%clk 0:00:22]} 85. Rd6 {[%clk 0:00:07]}  Rb8 {[%clk 0:00:22]} 86. Kg6 {[%clk 0:00:08]}  Rb6 {[%clk 0:00:20]} 87. Rf6 {[%clk 0:00:08]}  Rb8 {[%clk 0:00:19]} 88. Kh6 {[%clk 0:00:08]}  Ra8 {[%clk 0:00:19]} 89. Re6 {[%clk 0:00:08]}  Rb8 {[%clk 0:00:19]} 90. Kg6 {[%clk 0:00:08]}  Rb6 {[%clk 0:00:19]} 91. Rf6 {[%clk 0:00:09]}  Rb8 {[%clk 0:00:18]} 92. Rf8+ {[%clk 0:00:09]}  Rxf8 {[%clk 0:00:18]} 93. gxf8=Q+ {[%clk 0:00:10]}  Kxf8 {[%clk 0:00:19]} 1/2-1/2


[Site "https://www.chess.com"]

[Event "Titled Tuesday Blitz August 15 Late 2023"]
[White "Djordjevic, Vuk"]
[Black "Elsa167"]
[WhiteFideId "902098"]
[WhiteElo "2716"]
[BlackElo "2942"]
[Result "0-1"]
[Round "9"]
[TimeControl "180+1"]
[Date "2023.08.15"]
[WhiteClock "0:00:00"]
[BlackClock "0:01:41"]
[Board "15"]

1. d4 {[%clk 0:02:59]}  e6 {[%clk 0:03:00]} 2. Nf3 {[%clk 0:02:58]}  Nf6 {[%clk 0:02:58]} 3. Bg5 {[%clk 0:02:57]}  c5 {[%clk 0:02:56]} 4. e3 {[%clk 0:02:47]}  cxd4 {[%clk 0:02:56]} 5. exd4 {[%clk 0:02:44]}  Be7 {[%clk 0:02:56]} 6. c3 {[%clk 0:02:43]}  b6 {[%clk 0:02:56]} 7. Bd3 {[%clk 0:02:43]}  Bb7 {[%clk 0:02:56]} 8. O-O {[%clk 0:02:43]}  d6 {[%clk 0:02:56]} 9. Nbd2 {[%clk 0:02:43]}  Nbd7 {[%clk 0:02:56]} 10. Qe2 {[%clk 0:02:42]}  a6 {[%clk 0:02:55]} 11. a4 {[%clk 0:02:29]}  O-O {[%clk 0:02:54]} 12. Rfe1 {[%clk 0:02:28]}  Re8 {[%clk 0:02:54]} 13. Nf1 {[%clk 0:02:25]}  h6 {[%clk 0:02:46]} 14. Bd2 {[%clk 0:02:21]}  Bf8 {[%clk 0:02:43]} 15. Ng3 {[%clk 0:02:20]}  g6 {[%clk 0:02:38]} 16. Qd1 {[%clk 0:01:23]}  e5 {[%clk 0:02:35]} 17. Ne4 {[%clk 0:01:20]}  Nxe4 {[%clk 0:02:29]} 18. Rxe4 {[%clk 0:01:15]}  f5 {[%clk 0:02:12]} 19. Re2 {[%clk 0:00:48]}  e4 {[%clk 0:02:10]} 20. Ne1 {[%clk 0:00:46]}  exd3 {[%clk 0:02:10]} 21. Nxd3 {[%clk 0:00:47]}  Rxe2 {[%clk 0:01:56]} 22. Qxe2 {[%clk 0:00:48]}  Qe8 {[%clk 0:01:56]} 23. Qf1 {[%clk 0:00:49]}  Qf7 {[%clk 0:01:56]} 24. a5 {[%clk 0:00:42]}  b5 {[%clk 0:01:56]} 25. Nb4 {[%clk 0:00:41]}  Nf6 {[%clk 0:01:56]} 26. f3 {[%clk 0:00:39]}  Nd5 {[%clk 0:01:55]} 27. Nd3 {[%clk 0:00:39]}  Re8 {[%clk 0:01:55]} 28. Qf2 {[%clk 0:00:36]}  f4 {[%clk 0:01:55]} 29. Re1 {[%clk 0:00:26]}  g5 {[%clk 0:01:53]} 30. h4 {[%clk 0:00:24]}  Rxe1+ {[%clk 0:01:52]} 31. Qxe1 {[%clk 0:00:24]}  Bc8 {[%clk 0:01:52]} 32. hxg5 {[%clk 0:00:19]}  hxg5 {[%clk 0:01:53]} 33. b3 {[%clk 0:00:20]}  Bf5 {[%clk 0:01:52]} 34. Qe2 {[%clk 0:00:15]}  Qe6 {[%clk 0:01:51]} 35. Qxe6+ {[%clk 0:00:12]}  Bxe6 {[%clk 0:01:51]} 36. c4 {[%clk 0:00:13]}  bxc4 {[%clk 0:01:48]} 37. bxc4 {[%clk 0:00:13]}  Ne3 {[%clk 0:01:45]} 38. Bxe3 {[%clk 0:00:05]}  fxe3 {[%clk 0:01:45]} 39. d5 {[%clk 0:00:05]}  Bf5 {[%clk 0:01:44]} 40. Nb4 {[%clk 0:00:05]}  Bg7 {[%clk 0:01:42]} 41. Kf1 {[%clk 0:00:00]}  Bc3 {[%clk 0:01:41]} 0-1


[Site "https://www.chess.com"]

[Event "Titled Tuesday Blitz August 15 Late 2023"]
[White "Schekachikhin, Maksim"]
[Black "Zhigalko, Sergei"]
[WhiteFideId "24177830"]
[BlackFideId "13502956"]
[WhiteElo "2599"]
[BlackElo "2931"]
[Result "1/2-1/2"]
[Round "9"]
[TimeControl "180+1"]
[Date "2023.08.15"]
[WhiteClock "0:00:09"]
[BlackClock "0:00:07"]
[Board "16"]

1. d4 {[%clk 0:03:00]}  Nf6 {[%clk 0:03:00]} 2. Nf3 {[%clk 0:03:01]}  e6 {[%clk 0:03:00]} 3. Bf4 {[%clk 0:03:00]}  b6 {[%clk 0:03:00]} 4. e3 {[%clk 0:03:00]}  Bb7 {[%clk 0:03:00]} 5. h3 {[%clk 0:02:57]}  Bd6 {[%clk 0:03:00]} 6. Bxd6 {[%clk 0:02:56]}  cxd6 {[%clk 0:03:01]} 7. Bd3 {[%clk 0:02:55]}  O-O {[%clk 0:03:01]} 8. O-O {[%clk 0:02:55]}  d5 {[%clk 0:03:02]} 9. c4 {[%clk 0:02:53]}  dxc4 {[%clk 0:03:00]} 10. Bxc4 {[%clk 0:02:53]}  d6 {[%clk 0:02:53]} 11. Nc3 {[%clk 0:02:52]}  Nbd7 {[%clk 0:02:53]} 12. Rc1 {[%clk 0:02:50]}  a6 {[%clk 0:02:53]} 13. Bd3 {[%clk 0:02:44]}  b5 {[%clk 0:02:51]} 14. Qe2 {[%clk 0:02:42]}  Qb6 {[%clk 0:02:42]} 15. Nd2 {[%clk 0:02:39]}  Rac8 {[%clk 0:02:34]} 16. Nde4 {[%clk 0:02:36]}  h6 {[%clk 0:02:29]} 17. Nxf6+ {[%clk 0:02:35]}  Nxf6 {[%clk 0:02:30]} 18. a3 {[%clk 0:02:32]}  e5 {[%clk 0:02:26]} 19. dxe5 {[%clk 0:02:28]}  dxe5 {[%clk 0:02:27]} 20. Rfd1 {[%clk 0:02:24]}  Rfd8 {[%clk 0:02:13]} 21. Bf5 {[%clk 0:02:21]}  Rb8 {[%clk 0:02:03]} 22. Rxd8+ {[%clk 0:02:07]}  Rxd8 {[%clk 0:02:02]} 23. Rd1 {[%clk 0:02:08]}  Re8 {[%clk 0:01:55]} 24. Bb1 {[%clk 0:02:01]}  b4 {[%clk 0:01:32]} 25. axb4 {[%clk 0:01:52]}  Qxb4 {[%clk 0:01:33]} 26. Ba2 {[%clk 0:01:51]}  Qb6 {[%clk 0:00:55]} 27. Qc4 {[%clk 0:01:26]}  Re7 {[%clk 0:00:46]} 28. Na4 {[%clk 0:01:23]}  Qa5 {[%clk 0:00:36]} 29. Nc5 {[%clk 0:01:16]}  Bc6 {[%clk 0:00:16]} 30. b4 {[%clk 0:01:15]}  Qb6 {[%clk 0:00:10]} 31. Rd6 {[%clk 0:01:05]}  Qc7 {[%clk 0:00:06]} 32. Qd3 {[%clk 0:00:48]}  Bb5 {[%clk 0:00:04]} 33. Rd8+ {[%clk 0:00:47]}  Re8 {[%clk 0:00:04]} 34. Rxe8+ {[%clk 0:00:46]}  Nxe8 {[%clk 0:00:05]} 35. Qe4 {[%clk 0:00:33]}  Nf6 {[%clk 0:00:03]} 36. Qa8+ {[%clk 0:00:31]}  Kh7 {[%clk 0:00:04]} 37. Qf8 {[%clk 0:00:21]}  a5 {[%clk 0:00:02]} 38. Bxf7 {[%clk 0:00:13]}  axb4 {[%clk 0:00:02]} 39. Bb3 {[%clk 0:00:13]}  e4 {[%clk 0:00:02]} 40. g4 {[%clk 0:00:10]}  Qe5 {[%clk 0:00:01]} 41. Nb7 {[%clk 0:00:08]}  Nd7 {[%clk 0:00:01]} 42. Qd8 {[%clk 0:00:05]}  Qa1+ {[%clk 0:00:01]} 43. Kg2 {[%clk 0:00:05]}  Qf6 {[%clk 0:00:02]} 44. Qxf6 {[%clk 0:00:05]}  Nxf6 {[%clk 0:00:01]} 45. Nd6 {[%clk 0:00:06]}  Bc6 {[%clk 0:00:01]} 46. Nc4 {[%clk 0:00:06]}  Bd5 {[%clk 0:00:01]} 47. Nd2 {[%clk 0:00:07]}  Bxb3 {[%clk 0:00:01]} 48. Nxb3 {[%clk 0:00:07]}  g5 {[%clk 0:00:01]} 49. f3 {[%clk 0:00:07]}  exf3+ {[%clk 0:00:01]} 50. Kxf3 {[%clk 0:00:08]}  Kg6 {[%clk 0:00:02]} 51. e4 {[%clk 0:00:09]}  Nd7 {[%clk 0:00:02]} 52. Ke3 {[%clk 0:00:09]}  Kf6 {[%clk 0:00:02]} 53. Kd4 {[%clk 0:00:09]}  Ne5 {[%clk 0:00:03]} 54. Nc5 {[%clk 0:00:09]}  Ng6 {[%clk 0:00:02]} 55. Kd5 {[%clk 0:00:09]}  Nf4+ {[%clk 0:00:03]} 56. Kd6 {[%clk 0:00:09]}  Kf7 {[%clk 0:00:02]} 57. e5 {[%clk 0:00:09]}  Kg6 {[%clk 0:00:01]} 58. e6 {[%clk 0:00:09]}  Kf6 {[%clk 0:00:01]} 59. Kd7 {[%clk 0:00:09]}  Nxe6 {[%clk 0:00:01]} 60. Nxe6 {[%clk 0:00:09]}  b3 {[%clk 0:00:02]} 61. Nc5 {[%clk 0:00:08]}  b2 {[%clk 0:00:02]} 62. Ne4+ {[%clk 0:00:09]}  Ke5 {[%clk 0:00:03]} 63. Nd2 {[%clk 0:00:09]}  Kf4 {[%clk 0:00:03]} 64. Ke6 {[%clk 0:00:09]}  Ke3 {[%clk 0:00:02]} 65. Nb1 {[%clk 0:00:08]}  Kf3 {[%clk 0:00:02]} 66. Kf5 {[%clk 0:00:08]}  Kg3 {[%clk 0:00:03]} 67. Kg6 {[%clk 0:00:07]}  Kxh3 {[%clk 0:00:03]} 68. Kh5 {[%clk 0:00:08]}  Kg3 {[%clk 0:00:04]} 69. Na3 {[%clk 0:00:08]}  Kf4 {[%clk 0:00:04]} 70. Nb1 {[%clk 0:00:08]}  Kf3 {[%clk 0:00:04]} 71. Na3 {[%clk 0:00:08]}  Kg3 {[%clk 0:00:05]} 72. Nb1 {[%clk 0:00:08]}  Kh3 {[%clk 0:00:05]} 73. Na3 {[%clk 0:00:09]}  Kg3 {[%clk 0:00:06]} 74. Nb1 {[%clk 0:00:09]}  Kf4 {[%clk 0:00:06]} 75. Na3 {[%clk 0:00:09]}  Kg3 {[%clk 0:00:07]} 1/2-1/2


[Site "https://www.chess.com"]

[Event "Titled Tuesday Blitz August 15 Late 2023"]
[White "Soderstrom, Adrian"]
[Black "Andreikin, Dmitry"]
[WhiteFideId "1745786"]
[BlackFideId "4158814"]
[WhiteElo "2624"]
[BlackElo "2999"]
[Result "0-1"]
[Round "9"]
[TimeControl "180+1"]
[Date "2023.08.15"]
[WhiteClock "0:00:17"]
[BlackClock "0:01:02"]
[Board "17"]

1. h4 {[%clk 0:03:00]}  d5 {[%clk 0:02:54]} 2. d4 {[%clk 0:03:01]}  c5 {[%clk 0:02:53]} 3. e4 {[%clk 0:03:01]}  e6 {[%clk 0:02:50]} 4. exd5 {[%clk 0:02:55]}  exd5 {[%clk 0:02:49]} 5. Nf3 {[%clk 0:02:56]}  Nc6 {[%clk 0:02:48]} 6. Bb5 {[%clk 0:02:54]}  Nf6 {[%clk 0:02:43]} 7. O-O {[%clk 0:02:53]}  Be7 {[%clk 0:02:37]} 8. dxc5 {[%clk 0:02:49]}  Bxc5 {[%clk 0:02:38]} 9. Re1+ {[%clk 0:02:49]}  Be6 {[%clk 0:02:35]} 10. Nd4 {[%clk 0:02:37]}  O-O {[%clk 0:02:34]} 11. Bxc6 {[%clk 0:02:23]}  bxc6 {[%clk 0:02:33]} 12. Be3 {[%clk 0:02:20]}  Ng4 {[%clk 0:01:49]} 13. Nxe6 {[%clk 0:01:55]}  Nxe3 {[%clk 0:01:49]} 14. Nxd8 {[%clk 0:01:55]}  Nxd1 {[%clk 0:01:49]} 15. Rxd1 {[%clk 0:01:56]}  Rfxd8 {[%clk 0:01:49]} 16. Nd2 {[%clk 0:01:52]}  Rab8 {[%clk 0:01:49]} 17. Nb3 {[%clk 0:01:52]}  Bb6 {[%clk 0:01:42]} 18. c3 {[%clk 0:01:51]}  a5 {[%clk 0:01:36]} 19. Rd2 {[%clk 0:01:51]}  Re8 {[%clk 0:01:34]} 20. g3 {[%clk 0:01:01]}  Re4 {[%clk 0:01:29]} 21. Nd4 {[%clk 0:01:01]}  Rc8 {[%clk 0:01:24]} 22. Kg2 {[%clk 0:00:58]}  g6 {[%clk 0:01:24]} 23. Re2 {[%clk 0:00:54]}  f5 {[%clk 0:01:19]} 24. Rxe4 {[%clk 0:00:53]}  dxe4 {[%clk 0:01:18]} 25. Rd1 {[%clk 0:00:46]}  Rd8 {[%clk 0:01:15]} 26. Rd2 {[%clk 0:00:46]}  a4 {[%clk 0:01:12]} 27. b3 {[%clk 0:00:42]}  c5 {[%clk 0:01:10]} 28. bxa4 {[%clk 0:00:28]}  cxd4 {[%clk 0:01:10]} 29. cxd4 {[%clk 0:00:29]}  Rxd4 {[%clk 0:01:06]} 30. Rb2 {[%clk 0:00:29]}  Ba5 {[%clk 0:01:07]} 31. Rb7 {[%clk 0:00:26]}  Rxa4 {[%clk 0:01:06]} 32. Ra7 {[%clk 0:00:26]}  Rxa2 {[%clk 0:01:05]} 33. h5 {[%clk 0:00:26]}  Rxf2+ {[%clk 0:01:05]} 34. Kh3 {[%clk 0:00:24]}  Bd2 {[%clk 0:01:03]} 35. hxg6 {[%clk 0:00:21]}  hxg6 {[%clk 0:01:03]} 36. g4 {[%clk 0:00:21]}  e3 {[%clk 0:01:02]} 37. Kh4 {[%clk 0:00:17]}  e2 {[%clk 0:01:02]} 0-1


[Site "https://www.chess.com"]

[Event "Titled Tuesday Blitz August 15 Late 2023"]
[White "Veiga, Jose Francisco R P Neves"]
[Black "Hambleton, Aman"]
[WhiteFideId "1930087"]
[BlackFideId "2606577"]
[WhiteElo "2667"]
[BlackElo "2793"]
[Result "1/2-1/2"]
[Round "9"]
[TimeControl "180+1"]
[Date "2023.08.15"]
[WhiteClock "0:00:08"]
[BlackClock "0:00:02"]
[Board "20"]

1. c4 {[%clk 0:02:55]}  c5 {[%clk 0:02:59]} 2. Nc3 {[%clk 0:02:53]}  b6 {[%clk 0:02:58]} 3. g3 {[%clk 0:02:54]}  Bb7 {[%clk 0:02:57]} 4. e4 {[%clk 0:02:55]}  e6 {[%clk 0:02:57]} 5. Bg2 {[%clk 0:02:55]}  Nc6 {[%clk 0:02:54]} 6. Nge2 {[%clk 0:02:55]}  Nge7 {[%clk 0:02:40]} 7. O-O {[%clk 0:02:54]}  g6 {[%clk 0:02:35]} 8. d4 {[%clk 0:02:54]}  cxd4 {[%clk 0:02:35]} 9. Nxd4 {[%clk 0:02:55]}  a6 {[%clk 0:02:35]} 10. Bf4 {[%clk 0:02:52]}  Bg7 {[%clk 0:02:18]} 11. Nde2 {[%clk 0:02:48]}  Ne5 {[%clk 0:02:14]} 12. b3 {[%clk 0:02:47]}  Qc7 {[%clk 0:02:01]} 13. Rc1 {[%clk 0:02:44]}  d6 {[%clk 0:02:00]} 14. h3 {[%clk 0:02:41]}  O-O {[%clk 0:01:55]} 15. Be3 {[%clk 0:02:41]}  Rfd8 {[%clk 0:01:42]} 16. Qd2 {[%clk 0:02:38]}  Nd7 {[%clk 0:01:30]} 17. Rfd1 {[%clk 0:02:36]}  Nf6 {[%clk 0:01:27]} 18. f3 {[%clk 0:02:30]}  Rac8 {[%clk 0:01:25]} 19. Na4 {[%clk 0:02:29]}  Qb8 {[%clk 0:00:37]} 20. Nxb6 {[%clk 0:02:25]}  Rc6 {[%clk 0:00:36]} 21. Na4 {[%clk 0:02:19]}  Ne8 {[%clk 0:00:31]} 22. Nd4 {[%clk 0:02:17]}  Rcc8 {[%clk 0:00:30]} 23. Nb6 {[%clk 0:02:08]}  Rc7 {[%clk 0:00:29]} 24. Qf2 {[%clk 0:02:00]}  h6 {[%clk 0:00:16]} 25. h4 {[%clk 0:01:58]}  Nf6 {[%clk 0:00:13]} 26. Ne2 {[%clk 0:01:56]}  Bc6 {[%clk 0:00:11]} 27. c5 {[%clk 0:01:23]}  dxc5 {[%clk 0:00:07]} 28. Rxd8+ {[%clk 0:01:21]}  Qxd8 {[%clk 0:00:08]} 29. Bxc5 {[%clk 0:01:20]}  Bxe4 {[%clk 0:00:03]} 30. fxe4 {[%clk 0:01:13]}  Ng4 {[%clk 0:00:02]} 31. Qf4 {[%clk 0:00:47]}  Rxc5 {[%clk 0:00:02]} 32. Rxc5 {[%clk 0:00:31]}  Qxb6 {[%clk 0:00:02]} 33. Qc7 {[%clk 0:00:26]}  Qb4 {[%clk 0:00:02]} 34. Rc1 {[%clk 0:00:18]}  Bd4+ {[%clk 0:00:02]} 35. Kh1 {[%clk 0:00:15]}  Nf2+ {[%clk 0:00:02]} 36. Kh2 {[%clk 0:00:16]}  Ng4+ {[%clk 0:00:02]} 37. Kh1 {[%clk 0:00:16]}  Nf2+ {[%clk 0:00:02]} 38. Kh2 {[%clk 0:00:16]}  h5 {[%clk 0:00:02]} 39. Nxd4 {[%clk 0:00:15]}  Ng4+ {[%clk 0:00:02]} 40. Kh1 {[%clk 0:00:14]}  Qxd4 {[%clk 0:00:02]} 41. Qxe7 {[%clk 0:00:07]}  Nf2+ {[%clk 0:00:02]} 42. Kg1 {[%clk 0:00:07]}  Ng4+ {[%clk 0:00:02]} 43. Kh1 {[%clk 0:00:07]}  Nf2+ {[%clk 0:00:02]} 44. Kh2 {[%clk 0:00:08]}  Ng4+ {[%clk 0:00:02]} 45. Kh1 {[%clk 0:00:08]} 1/2-1/2


[Site "https://www.chess.com"]